[Event "SixDays Budapest IM-A 10-2024"]
[Site "Budapest"]
[Date "2024.10.04"]
[Round "7.2"]
[White "Zia, Tahsin Tajwar"]
[Black "Kwon, Sehyun"]
[Result "1/2-1/2"]
[ECO "E06"]
[WhiteElo "2255"]
[BlackElo "2248"]
[Annotator "RC"]
[PlyCount "136"]
[EventDate "2024.09.24"]
[EventType "tourn"]
[EventCountry "HUN"]
[SourceTitle "playchess.com"]
[Source "ChessBase"]
[SourceQuality "1"]
[TimeControl "5400+30"]

1. d4 {[%emt 0:03:45]} d5 {[%emt 0:01:13]} 2. c4 {[%emt 0:00:26]} e6 {[%emt 0:00:06]} 3. Nf3 {[%emt 0:02:19]} Nf6 {[%emt 0:00:09]} 4. g3 {[%emt 0:01:14]} Be7 {[%emt 0:00:26]} 5. Bg2 {[%emt 0:00:07]} O-O {[%emt 0:00:13]} 6. Nc3 {[%emt 0:00:31]} dxc4 {[%emt 0:06:28]} 7. Ne5 {[%emt 0:01:17]} c5 {[%emt 0:03:54]} 8. dxc5 {[%emt 0:01:01]} Qxd1+ {[%emt 0:03:40]} 9. Nxd1 {[%emt 0:00:08]} Bxc5 {[%emt 0:00:23]} 10. O-O {[%emt 0:01:23]} Nd5 {[%emt 0:05:08]} 11. Nxc4 {[%emt 0:01:36]} Nc6 {[%emt 0:03:41]} 12. e4 {[%emt 0:20:23]} Nb6 {[%emt 0:07:24]} 13. Be3 {[%emt 0:13:35]} Bxe3 {[%emt 0:05:07]} 14. Ncxe3 {[%emt 0:01:58]} Bd7 {[%emt 0:16:51]} 15. f4 {[%emt 0:03:52]} Rac8 {[%emt 0:04:48]} 16. e5 {[%emt 0:00:37]} Rc7 {[%emt 0:01:50]} 17. Nc3 {[%emt 0:01:03]} Ne7 {[%emt 0:06:05]} 18. Rad1 {[%emt 0:03:39]} Bc6 {[%emt 0:09:01]} 19. Rd6 {[%emt 0:02:31]} Nec8 {[%emt 0:11:57]} 20. Rd2 {[%emt 0:00:57]} Na4 {[%emt 0:02:14]} 21. Nxa4 {[%emt 0:02:25]} Bxa4 {[%emt 0:00:06]} 22. b3 {[%emt 0:00:26]} Bb5 {[%emt 0:02:22]} 23. Rfd1 {[%emt 0:00:14]} h5 {[%emt 0:02:31]} 24. Kf2 {[%emt 0:03:29]} Ne7 {[%emt 0:00:31]} 25. h3 {[%emt 0:08:54]} g6 {[%emt 0:01:44]} 26. g4 {[%emt 0:01:29]} hxg4 {[%emt 0:00:16]} 27. hxg4 {[%emt 0:02:39]} Kg7 {[%emt 0:00:45]} 28. a4 {[%emt 0:12:25]} Bc6 {[%emt 0:00:45]} 29. Bxc6 {[%emt 0:00:51]} Nxc6 {[%emt 0:00:34]} 30. Rd7 {[%emt 0:00:22]} Rfc8 {[%emt 0:00:58]} 31. Nc4 {[%emt 0:01:38]} Ne7 {[%emt 0:02:22]} 32. Rxc7 {[%emt 0:04:58]} Rxc7 {[%emt 0:00:04]} 33. Rd8 {[%emt 0:00:03]} Nc6 {[%emt 0:01:25]} 34. Ra8 {[%emt 0:00:40]} Rd7 {[%emt 0:01:23]} 35. Nd6 {[%emt 0:00:02]} Rd8 {[%emt 0:00:27]} 36. Rxd8 {[%emt 0:00:09]} Nxd8 {[%emt 0:00:04]} 37. Ke3 {[%emt 0:01:12]} b6 {[%emt 0:01:31]} 38. b4 {[%emt 0:01:23]} g5 {[%emt 0:00:21]} 39. b5 {[%emt 0:00:33]} gxf4+ {[%emt 0:00:22]} 40. Kxf4 {[%emt 0:00:02]} Kg6 {[%emt 0:00:12]} 41. Ke4 {[%emt 0:02:34]} Kg5 {[%emt 0:01:00]} 42. Kf3 {[%emt 0:00:30]} Kh6 {[%emt 0:00:35]} 43. Kg3 {[%emt 0:01:49]} Kg5 {[%emt 0:00:05]} 44. Kf3 {[%emt 0:00:13]} Kh6 {[%emt 0:00:04]} 45. Ke3 {[%emt 0:00:31]} Kg5 {[%emt 0:00:08]} 46. Nc8 {[%emt 0:00:56]} Nb7 {[%emt 0:00:18]} 47. Nxa7 {[%emt 0:00:15]} Nc5 {[%emt 0:00:06]} 48. Nc8 {[%emt 0:00:13]} Nxa4 {[%emt 0:00:11]} 49. Kd4 {[%emt 0:00:34]} Kxg4 {[%emt 0:00:42]} 50. Kc4 {[%emt 0:00:26]} Kf4 {[%emt 0:01:17]} 51. Kb4 {[%emt 0:00:06]} Nb2 {[%emt 0:00:14]} 52. Kc3 {[%emt 0:00:46]} Na4+ {[%emt 0:00:25]} 53. Kb4 {[%emt 0:00:00]} Nb2 {[%emt 0:00:06]} 54. Nxb6 {[%emt 0:00:09]} Nd3+ {[%emt 0:00:13]} 55. Kc4 {[%emt 0:00:53]} Nxe5+ {[%emt 0:00:10]} 56. Kc5 {[%emt 0:00:01]} Nd3+ {[%emt 0:02:11]} 57. Kd6 {[%emt 0:01:25]} Nb2 {[%emt 0:00:42]} 58. Nd7 {[%emt 0:00:21]} Na4 {[%emt 0:00:47]} 59. Ne5 {[%emt 0:00:36]} f6 {[%emt 0:00:32]} 60. Nd3+ {[%emt 0:00:12]} Ke3 {[%emt 0:00:51]} 61. Nc5 {[%emt 0:00:13]} Nb6 {[%emt 0:00:30]} 62. Nxe6 {[%emt 0:00:44]} f5 {[%emt 0:00:13]} 63. Kc5 {[%emt 0:00:23]} Na4+ {[%emt 0:00:15]} 64. Kb4 {[%emt 0:00:06]} Nb6 {[%emt 0:00:08]} 65. Kc5 {[%emt 0:00:53]} Na4+ {[%emt 0:00:05]} 66. Kc6 {[%emt 0:00:35]} f4 {[%emt 0:00:15]} 67. Nxf4 {[%emt 0:00:04]} Kxf4 {[%emt 0:00:04]} 68. b6 {[%emt 0:00:03]} Nxb6 {[%emt 0:00:04]} 1/2-1/2

[Event "SixDays Budapest IM-A 10-2024"]
[Site "Budapest"]
[Date "2024.10.04"]
[Round "7.3"]
[White "Li, Xueyi"]
[Black "Polyik, Peter"]
[Result "1/2-1/2"]
[ECO "A50"]
[WhiteElo "2187"]
[BlackElo "2304"]
[Annotator "RC"]
[PlyCount "133"]
[EventDate "2024.09.24"]
[EventType "tourn"]
[EventCountry "HUN"]
[SourceTitle "playchess.com"]
[Source "ChessBase"]
[SourceQuality "1"]
[TimeControl "5400+30"]

1. d4 {[%emt 0:00:03]} Nf6 {[%emt 0:00:10]} 2. c4 {[%emt 0:00:10]} b6 {[%emt 0:00:07]} 3. Nf3 {[%emt 0:01:50]} Bb7 {[%emt 0:00:08]} 4. Bf4 {[%emt 0:00:56]} e6 {[%emt 0:00:14]} 5. e3 {[%emt 0:00:18]} Bb4+ {[%emt 0:02:39]} 6. Nfd2 {[%emt 0:04:56]} O-O {[%emt 0:01:11]} 7. a3 {[%emt 0:00:17]} Be7 {[%emt 0:00:09]} 8. Nc3 {[%emt 0:04:13]} d6 {[%emt 0:14:25]} 9. e4 {[%emt 0:08:07]} Nbd7 {[%emt 0:06:35]} 10. Bg3 {[%emt 0:04:30]} e5 {[%emt 0:04:56]} 11. d5 {[%emt 0:00:32]} g6 {[%emt 0:04:07]} 12. Be2 {[%emt 0:05:29]} Ne8 {[%emt 0:00:17]} 13. O-O {[%emt 0:00:14]} Kh8 {[%emt 0:13:42]} 14. b4 {[%emt 0:01:36]} f5 {[%emt 0:00:08]} 15. exf5 {[%emt 0:01:09]} gxf5 {[%emt 0:00:06]} 16. f4 {[%emt 0:00:05]} e4 {[%emt 0:00:41]} 17. Nb3 {[%emt 0:00:51]} Ng7 {[%emt 0:08:03]} 18. Rc1 {[%emt 0:01:56]} a6 {[%emt 0:01:19]} 19. Nd4 {[%emt 0:00:41]} Qe8 {[%emt 0:00:14]} 20. Ne6 {[%emt 0:03:28]} Nxe6 {[%emt 0:06:10]} 21. Bh5 {[%emt 0:02:47]} Qd8 {[%emt 0:00:56]} 22. dxe6 {[%emt 0:00:13]} Nf6 {[%emt 0:00:06]} 23. Bf7 {[%emt 0:00:30]} c6 {[%emt 0:08:52]} 24. Bf2 {[%emt 0:01:33]} c5 {[%emt 0:05:55]} 25. h3 {[%emt 0:05:28]} Qc8 {[%emt 0:04:46]} 26. Qb3 {[%emt 0:07:03]} Bc6 {[%emt 0:02:16]} 27. Nd5 {[%emt 0:06:04]} Bxd5 {[%emt 0:01:30]} 28. cxd5 {[%emt 0:00:06]} Rb8 {[%emt 0:06:36]} 29. Bh4 {[%emt 0:03:55]} Rxf7 {[%emt 0:02:04]} 30. exf7 {[%emt 0:00:08]} Kg7 {[%emt 0:00:04]} 31. Rc2 {[%emt 0:08:12]} Kxf7 {[%emt 0:00:19]} 32. Rb1 {[%emt 0:00:23]} Nd7 {[%emt 0:02:47]} 33. Bxe7 {[%emt 0:01:02]} Kxe7 {[%emt 0:00:03]} 34. Qg3 {[%emt 0:04:45]} Kf7 {[%emt 0:00:19]} 35. Kh2 {[%emt 0:02:14]} Nf6 {[%emt 0:00:39]} 36. bxc5 {[%emt 0:01:15]} bxc5 {[%emt 0:00:17]} 37. Rxb8 {[%emt 0:01:09]} Qxb8 {[%emt 0:00:01]} 38. Rc3 {[%emt 0:00:37]} Qb7 {[%emt 0:01:25]} 39. Qg5 {[%emt 0:01:00]} Qxd5 {[%emt 0:00:19]} 40. Rg3 {[%emt 0:00:19]} Ke6 {[%emt 0:00:38]} 41. Qh6 {[%emt 0:02:55]} Qc6 {[%emt 0:02:20]} 42. Rg8 {[%emt 0:01:44]} Qd7 {[%emt 0:00:05]} 43. Rg7 {[%emt 0:01:22]} Qc6 {[%emt 0:01:08]} 44. Ra7 {[%emt 0:03:13]} e3 {[%emt 0:01:58]} 45. Qg7 {[%emt 0:00:41]} Qe8 {[%emt 0:00:04]} 46. Qg3 {[%emt 0:01:14]} Kd5 {[%emt 0:00:19]} 47. Rxa6 {[%emt 0:00:58]} Qe4 {[%emt 0:00:17]} 48. Rb6 {[%emt 0:01:29]} e2 {[%emt 0:00:54]} 49. Qe1 {[%emt 0:04:38]} Qxf4+ {[%emt 0:00:54]} 50. g3 {[%emt 0:01:05]} Qe3 {[%emt 0:00:14]} 51. Rb2 {[%emt 0:00:43]} Ne4 {[%emt 0:00:06]} 52. Rxe2 {[%emt 0:00:54]} Qxa3 {[%emt 0:00:08]} 53. Qd1+ {[%emt 0:02:16]} Ke5 {[%emt 0:00:15]} 54. Rg2 {[%emt 0:00:04]} d5 {[%emt 0:00:17]} 55. Qh5 {[%emt 0:00:20]} c4 {[%emt 0:00:57]} 56. Qe8+ {[%emt 0:00:26]} Kd4 {[%emt 0:00:11]} 57. Qh8+ {[%emt 0:00:23]} Kd3 {[%emt 0:00:05]} 58. Qxh7 {[%emt 0:00:31]} c3 {[%emt 0:01:25]} 59. Qxf5 {[%emt 0:00:12]} Kc4 {[%emt 0:00:13]} 60. h4 {[%emt 0:00:39]} Qb3 {[%emt 0:00:13]} 61. Qf1+ {[%emt 0:01:22]} Kb4 {[%emt 0:00:14]} 62. h5 {[%emt 0:01:53]} Nd2 {[%emt 0:00:32]} 63. Qf8+ {[%emt 0:00:36]} Kc4 {[%emt 0:00:13]} 64. Qc8+ {[%emt 0:00:56]} Kb4 {[%emt 0:01:25]} 65. Qf8+ {[%emt 0:00:07]} Kc4 {[%emt 0:00:08]} 66. Qc8+ {[%emt 0:01:14]} Kb4 {[%emt 0:00:03]} 67. Qf8+ 1/2-1/2

[Event "SixDays Budapest IM-A 10-2024"]
[Site "Budapest"]
[Date "2024.10.04"]
[Round "7.4"]
[White "Chubakov, Sultan"]
[Black "Kustar, Sandor"]
[Result "1/2-1/2"]
[ECO "D93"]
[WhiteElo "2265"]
[BlackElo "2252"]
[Annotator "RC"]
[PlyCount "65"]
[EventDate "2024.09.24"]
[EventType "tourn"]
[EventCountry "HUN"]
[SourceTitle "playchess.com"]
[Source "ChessBase"]
[SourceQuality "1"]
[TimeControl "5400+30"]

1. d4 {[%emt 0:00:03]} Nf6 {[%emt 0:00:07]} 2. c4 {[%emt 0:00:06]} g6 {[%emt 0:00:04]} 3. Nc3 {[%emt 0:00:06]} d5 {[%emt 0:00:05]} 4. Bf4 {[%emt 0:00:46]} Bg7 {[%emt 0:01:35]} 5. e3 {[%emt 0:00:30]} O-O {[%emt 0:00:54]} 6. Nf3 {[%emt 0:01:59]} c5 {[%emt 0:00:31]} 7. dxc5 {[%emt 0:04:40]} Qa5 {[%emt 0:03:06]} 8. Rc1 {[%emt 0:02:07]} dxc4 {[%emt 0:01:18]} 9. Bxc4 {[%emt 0:04:30]} Qxc5 {[%emt 0:00:09]} 10. Bb3 {[%emt 0:04:31]} Nc6 {[%emt 0:00:42]} 11. O-O {[%emt 0:04:23]} Qa5 {[%emt 0:01:00]} 12. h3 {[%emt 0:09:30]} Bf5 {[%emt 0:01:18]} 13. Qe2 {[%emt 0:05:49]} e5 {[%emt 0:08:37]} 14. Bh2 {[%emt 0:10:13]} Rad8 {[%emt 0:00:41]} 15. Rfd1 {[%emt 0:01:04]} e4 {[%emt 0:10:14]} 16. Nd4 {[%emt 0:05:41]} Nxd4 {[%emt 0:04:01]} 17. Rxd4 {[%emt 0:00:35]} Rxd4 {[%emt 0:02:34]} 18. exd4 {[%emt 0:00:04]} Rd8 {[%emt 0:00:19]} 19. d5 {[%emt 0:11:28]} Re8 {[%emt 0:04:05]} 20. Qb5 {[%emt 0:08:28]} Qxb5 {[%emt 0:02:14]} 21. Nxb5 {[%emt 0:00:03]} Bh6 {[%emt 0:00:11]} 22. Re1 {[%emt 0:02:37]} Rd8 {[%emt 0:09:10]} 23. g4 {[%emt 0:02:20]} Bd7 {[%emt 0:00:09]} 24. Nd6 {[%emt 0:00:41]} Bd2 {[%emt 0:08:08]} 25. Re2 {[%emt 0:02:59]} Bb4 {[%emt 0:00:18]} 26. Nxb7 {[%emt 0:02:33]} Rc8 {[%emt 0:00:18]} 27. a3 {[%emt 0:01:17]} Rc1+ {[%emt 0:03:18]} 28. Kg2 {[%emt 0:00:05]} Bb5 {[%emt 0:01:06]} 29. Rc2 {[%emt 0:00:11]} Bf1+ {[%emt 0:00:46]} 30. Kg3 {[%emt 0:01:26]} Rxc2 {[%emt 0:02:08]} 31. Bxc2 {[%emt 0:00:03]} Bd2 {[%emt 0:05:09]} 32. h4 {[%emt 0:06:37]} h6 {[%emt 0:07:03]} 33. g5 {[%emt 0:01:48]} 1/2-1/2

[Event "SixDays Budapest IM-A 10-2024"]
[Site "Budapest"]
[Date "2024.10.04"]
[Round "7.5"]
[White "Krishna C R G"]
[Black "Pribelszky, Bence Daniel"]
[Result "1-0"]
[ECO "A40"]
[WhiteElo "2425"]
[BlackElo "2408"]
[Annotator "TA"]
[PlyCount "103"]
[EventDate "2024.09.24"]
[EventType "tourn"]
[EventCountry "HUN"]
[SourceTitle "playchess.com"]
[Source "ChessBase"]
[SourceQuality "1"]
[TimeControl "5400+30"]

{[%evp 12,103,14,13,14,26,12,18,37,32,55,16,26,22,55,24,34,20,34,15,31,22,25,24,59,49,41,25,31,28,25,27,24,19,23,25,25,12,18,7,7,8,12,9,6,5,68,58,74,70,68,67,73,60,83,31,72,16,16,16,30,30,37,30,72,60,64,68,68,72,79,74,81,66,62,64,84,81,154,96,222,222,203,152,535,515,29979,29980,29980,29981,29981,29982,29982,29983]} 1. d4 {[%emt 0:03:21]} Nf6 {[%emt 0:04:25]} 2. c4 {[%emt 0:00:03]} e6 {[%emt 0:00:09]} 3. g3 {[%emt 0:00:05]} Bb4+ {[%emt 0:00:08]} 4. Nd2 {[%emt 0:00:03]} c5 {[%emt 0:00:31]} 5. a3 {[%emt 0:00:02]} Bxd2+ {[%emt 0:00:09]} 6. Qxd2 {[%emt 0:00:02]} cxd4 {[%emt 0:00:14]} 7. Nf3 {[%emt 0:00:11]} d5 {[%emt 0:00:33]} 8. Bg2 {[%emt 0:00:24]} dxc4 {[%emt 0:01:41] ...Nc6 would now be deadly.} 9. Qxd4 {[%emt 0:00:04]} Qd5 {[%emt 0:14:48] The position is equal.} 10. O-O {[%emt 0:04:02][%mdl 1024] White has compensation.} Nc6 {[%emt 0:01:25]} 11. Qc3 {[%emt 0:04:23]} O-O {[%emt 0:04:17]} 12. Bf4 {[%emt 0:09:24]} Qc5 {[%emt 0:19:18]} 13. Be3 {[%emt 0:05:19] This pair of bishops is nice.} Qh5 {[%emt 0:03:12]} 14. Qxc4 {[%emt 0:08:44]} Ng4 {[%emt 0:00:13] aiming for ...Nce5.} 15. Qc3 {[%emt 0:02:34]} Nxe3 {[%emt 0:06:47]} 16. Qxe3 {[%emt 0:00:02]} e5 {[%emt 0:01:11]} 17. Rac1 {[%emt 0:01:45][%cal Ba1c1,Bc1c5,Bc5e5][%mdl 32]} Bh3 {[%emt 0:17:12]} 18. Bxh3 {[%emt 0:19:23]} Qxh3 {[%emt 0:00:18]} 19. Nxe5 {[%emt 0:00:02]} Rae8 {[%emt 0:00:45][%cal Ba8e8,Be8e6,Be6h6][%mdl 32]} 20. Rc5 {[%emt 0:11:48]} Re6 $1 {[%emt 0:02:44] White must now prevent ...Nxe5.} 21. Qf4 {[%emt 0:00:46]} Nxe5 $1 {[%emt 0:04:06]} 22. Rxe5 {[%emt 0:00:03]} Rh6 $1 {[%emt 0:00:08][%csl Gh6][%cal Rh3h2]} 23. g4 {[%emt 0:00:03]} Rg6 {[%emt 0:11:37]} 24. f3 {[%emt 0:10:22]} h5 {[%emt 0:00:46]} 25. Rg5 {[%emt 0:00:16]} Rxg5 {[%emt 0:01:48]} 26. Qxg5 {[%emt 0:00:01]} hxg4 $1 {[%emt 0:00:11]} 27. fxg4 $11 {[%emt 0:04:21][%mdl 4096] Endgame. KQR-KQR} Qb3 $1 {[%emt 0:02:18]} 28. Qe5 {[%emt 0:00:17]} Rd8 {[%emt 0:02:03]} (28... Qb6+ $11 29. Rf2 Qc6) 29. Rf3 $14 {[%emt 0:00:42]} Qd1+ {[%emt 0:01:27]} 30. Kf2 {[%emt 0:02:05]} Qd7 {[%emt 0:00:34]} 31. Rd3 {[%emt 0:05:55] White is more active.} Qc8 {[%emt 0:00:11]} 32. Rxd8+ {[%emt 0:02:47]} Qxd8 $16 {[%emt 0:00:02] KQ-KQ} 33. Ke3 {[%emt 0:00:32]} (33. Kg3 $16) 33... g6 {[%emt 0:01:11]} 34. g5 {[%emt 0:00:56]} (34. h3 $16) 34... a6 $11 {[%emt 0:00:36]} 35. h4 {[%emt 0:00:11]} Qd7 {[%emt 0:00:28]} 36. Qd4 {[%emt 0:00:11]} Qh3+ {[%emt 0:00:29]} 37. Kd2 {[%emt 0:00:07]} Qg2 {[%emt 0:00:33]} 38. Qd8+ {[%emt 0:00:18]} Kg7 {[%emt 0:00:11]} 39. Qf6+ {[%emt 0:00:18]} Kg8 {[%emt 0:00:06]} 40. Qf3 {[%emt 0:00:02]} Qh2 {[%emt 0:01:13]} 41. Qxb7 {[%emt 0:00:05]} Qxh4 {[%emt 0:00:07]} 42. Qb8+ {[%emt 0:01:21]} Kh7 {[%emt 0:00:21]} 43. Qe5 {[%emt 0:00:05]} Qa4 {[%emt 0:00:40]} 44. Kc3 {[%emt 0:01:18]} Kg8 {[%emt 0:00:49] [#]} ({Black should try} 44... a5) 45. e4 {[%emt 0:01:32]} ({Better is} 45. e3 $1) 45... Qd1 {[%emt 0:00:34] [#]} (45... Kh7 $16) 46. Kb4 $1 $18 {[%emt 0:00:30]} Qd2+ {[%emt 0:00:24]} 47. Ka4 {[%emt 0:00:42]} Kh7 $2 {[%emt 0:00:35] A mistake that costs the game.} (47... Qd8 $16 48. Qd5 Qc7) 48. Qd5 {[%emt 0:01:53]} Qxb2 {[%emt 0:00:30]} (48... Qc2+ $18 49. Ka5 Qc7+ 50. Kxa6 Qc8+ 51. Ka5 Qc7+ 52. Kb4 Kg8) 49. Qxf7+ {[%emt 0:00:08] White mates.} Kh8 {[%emt 0:00:04]} 50. Qf8+ {[%emt 0:00:07]} (50. Qxg6 $2 Qb5#) ({Weaker is} 50. Qf6+ Qxf6 51. gxf6 g5 $18) 50... Kh7 {[%emt 0:00:05]} 51. Qh6+ {[%emt 0:00:02]} Kg8 {[%emt 0:00:39]} 52. Qxg6+ {[%emt 0:00:03] Weighted Error Value: White=0.09 (flawless) /Black=0.40.  Loses game:     	---       	Black=1      Mistake:       	White=3     	Black=4      Inaccurate:     	White=2     	Black=4      OK:         	White=15    	Black=12     Best:        	White=5     	Black=5      Strong:       	White=1     	Black=5} 1-0

[Event "SixDays Budapest IM-A 10-2024"]
[Site "Budapest"]
[Date "2024.10.04"]
[Round "8.1"]
[White "Valkova, Angelika"]
[Black "Zia, Tahsin Tajwar"]
[Result "0-1"]
[ECO "A57"]
[WhiteElo "2068"]
[BlackElo "2255"]
[Annotator "RC"]
[PlyCount "60"]
[EventDate "2024.09.24"]
[EventType "tourn"]
[EventCountry "HUN"]
[SourceTitle "playchess.com"]
[Source "ChessBase"]
[SourceQuality "1"]
[TimeControl "5400+30"]

1. d4 {[%emt 0:00:03]} Nf6 {[%emt 0:00:22]} 2. c4 {[%emt 0:00:06]} c5 {[%emt 0:00:06]} 3. d5 {[%emt 0:00:07]} b5 {[%emt 0:00:08]} 4. Qc2 {[%emt 0:00:04]} b4 {[%emt 0:00:04]} 5. e4 {[%emt 0:00:13]} d6 {[%emt 0:00:05]} 6. a3 {[%emt 0:00:10]} a5 {[%emt 0:00:05]} 7. axb4 {[%emt 0:00:06]} cxb4 {[%emt 0:00:02]} 8. c5 {[%emt 0:00:09]} dxc5 {[%emt 0:00:06]} 9. Be3 {[%emt 0:10:02]} e6 {[%emt 0:03:45]} 10. Nd2 {[%emt 0:02:09]} exd5 {[%emt 0:02:21]} 11. exd5 {[%emt 0:01:14]} Bd6 {[%emt 0:02:57]} 12. Nc4 {[%emt 0:18:44]} O-O {[%emt 0:00:40]} 13. Nxd6 {[%emt 0:01:01]} Qxd6 {[%emt 0:00:07]} 14. Qxc5 {[%emt 0:02:17]} Qxc5 {[%emt 0:01:04]} 15. Bxc5 {[%emt 0:00:07]} Re8+ {[%emt 0:00:04]} 16. Kd1 {[%emt 0:02:14]} Nxd5 {[%emt 0:01:00]} 17. Bc4 {[%emt 0:02:17]} Be6 {[%emt 0:05:10]} 18. Bxd5 {[%emt 0:13:18]} Bxd5 {[%emt 0:01:15]} 19. f3 {[%emt 0:00:55]} Bb3+ {[%emt 0:01:10]} 20. Kd2 {[%emt 0:00:23]} Nc6 {[%emt 0:01:38]} 21. Rf1 {[%emt 0:06:29]} Ne5 {[%emt 0:01:43]} 22. Ne2 {[%emt 0:05:59]} Rac8 {[%emt 0:00:32]} 23. Nd4 {[%emt 0:03:27]} Rxc5 {[%emt 0:02:44]} 24. Nxb3 {[%emt 0:00:18]} Rd5+ {[%emt 0:00:05]} 25. Kc2 {[%emt 0:00:54]} a4 {[%emt 0:04:24]} 26. Nc1 {[%emt 0:00:38]} Nc4 {[%emt 0:01:28]} 27. Rf2 {[%emt 0:01:58]} b3+ {[%emt 0:02:09]} 28. Kc3 {[%emt 0:02:57]} Ne3 {[%emt 0:04:15]} 29. Re2 {[%emt 0:02:48]} Rc8+ {[%emt 0:00:35]} 30. Kb4 {[%emt 0:00:10]} Rc4+ {[%emt 0:00:13]} 0-1

[Event "SixDays Budapest IM-A 10-2024"]
[Site "Budapest"]
[Date "2024.10.04"]
[Round "8.2"]
[White "Pavan Karthikeya Varma Gunturi"]
[Black "Pribelszky, Bence Daniel"]
[Result "0-1"]
[ECO "B48"]
[WhiteElo "2056"]
[BlackElo "2408"]
[Annotator "RC"]
[PlyCount "84"]
[EventDate "2024.09.24"]
[EventType "tourn"]
[EventCountry "HUN"]
[SourceTitle "playchess.com"]
[Source "ChessBase"]
[SourceQuality "1"]
[TimeControl "5400+30"]

1. e4 {[%emt 0:00:11]} c5 {[%emt 0:00:31]} 2. Nf3 {[%emt 0:00:05]} e6 {[%emt 0:00:11]} 3. d4 {[%emt 0:00:04]} cxd4 {[%emt 0:00:05]} 4. Nxd4 {[%emt 0:00:06]} Nc6 {[%emt 0:00:07]} 5. Nc3 {[%emt 0:00:05]} Qc7 {[%emt 0:00:05]} 6. Be3 {[%emt 0:01:32]} Nf6 {[%emt 0:01:12]} 7. Be2 {[%emt 0:09:02]} a6 {[%emt 0:01:46]} 8. O-O {[%emt 0:01:19]} Bb4 {[%emt 0:00:08]} 9. f3 {[%emt 0:05:42]} O-O {[%emt 0:01:04]} 10. Nxc6 {[%emt 0:10:40]} bxc6 {[%emt 0:01:47]} 11. Na4 {[%emt 0:04:09]} Rb8 {[%emt 0:05:28]} 12. c4 {[%emt 0:02:25]} Bd6 {[%emt 0:01:33]} 13. g3 {[%emt 0:03:23]} c5 {[%emt 0:02:32]} 14. Qd2 {[%emt 0:07:22]} Be7 {[%emt 0:01:46]} 15. Rfd1 {[%emt 0:04:58]} d6 {[%emt 0:00:53]} 16. Rab1 {[%emt 0:02:53]} Bb7 {[%emt 0:09:15]} 17. a3 {[%emt 0:05:15]} h5 {[%emt 0:17:54]} 18. b4 {[%emt 0:09:04]} h4 {[%emt 0:01:24]} 19. bxc5 {[%emt 0:05:28]} dxc5 {[%emt 0:00:24]} 20. e5 {[%emt 0:03:16]} Rfd8 {[%emt 0:08:36]} 21. Qc3 {[%emt 0:09:07]} Rxd1+ {[%emt 0:06:38]} 22. Rxd1 {[%emt 0:01:03]} Ng4 {[%emt 0:04:06]} 23. Bf4 {[%emt 0:01:19]} g5 {[%emt 0:02:22]} 24. Be3 {[%emt 0:02:04]} hxg3 {[%emt 0:03:47]} 25. hxg3 {[%emt 0:00:22]} Nxe5 {[%emt 0:00:18]} 26. Kf2 {[%emt 0:01:23]} Bf6 {[%emt 0:03:52]} 27. Qc2 {[%emt 0:00:54]} Bc6 {[%emt 0:04:03]} 28. Nxc5 {[%emt 0:03:55]} Rb2 {[%emt 0:03:38]} 29. Qc1 {[%emt 0:00:15]} Nxf3 {[%emt 0:04:11]} 30. Nd3 {[%emt 0:01:48]} Rxe2+ {[%emt 0:01:28]} 31. Kxe2 {[%emt 0:00:11]} Qxg3 {[%emt 0:00:04]} 32. Rf1 {[%emt 0:01:20]} Qg4 {[%emt 0:01:01]} 33. Kf2 {[%emt 0:00:56]} Qh4+ {[%emt 0:00:30]} 34. Ke2 {[%emt 0:00:11]} Qh5 {[%emt 0:00:05]} 35. Rf2 {[%emt 0:01:21]} Bd8 {[%emt 0:09:54]} 36. Nb4 {[%emt 0:01:30]} Be4 {[%emt 0:00:40]} 37. c5 {[%emt 0:00:53]} Bc7 {[%emt 0:00:38]} 38. c6 {[%emt 0:00:49]} Nd4+ {[%emt 0:02:35]} 39. Ke1 {[%emt 0:00:12]} Qh1+ {[%emt 0:00:08]} 40. Rf1 {[%emt 0:00:09]} Bg3+ {[%emt 0:00:11]} 41. Bf2 {[%emt 0:00:59]} Bxf2+ {[%emt 0:00:33]} 42. Kxf2 {[%emt 0:00:22]} Qf3+ {[%emt 0:00:05]} 0-1

[Event "SixDays Budapest IM-A 10-2024"]
[Site "Budapest"]
[Date "2024.10.04"]
[Round "8.3"]
[White "Kustar, Sandor"]
[Black "Krishna C R G"]
[Result "1/2-1/2"]
[ECO "A04"]
[WhiteElo "2252"]
[BlackElo "2425"]
[Annotator "TA"]
[PlyCount "35"]
[EventDate "2024.09.24"]
[EventType "tourn"]
[EventCountry "HUN"]
[SourceTitle "playchess.com"]
[Source "ChessBase"]
[SourceQuality "1"]
[TimeControl "5400+30"]

{[%evp 9,35,11,13,13,38,4,45,44,59,44,62,18,62,56,68,59,62,61,78,73,82,69,79,43,42,34,61,33]} 1. Nf3 {[%emt 0:00:05]} d6 {[%emt 0:01:22]} 2. d4 {[%emt 0:00:12]} f5 {[%emt 0:00:12]} 3. c3 {[%emt 0:02:28]} Nf6 {[%emt 0:00:10]} 4. Qb3 {[%emt 0:00:07]} e6 {[%emt 0:01:05]} 5. g3 {[%emt 0:04:03]} g6 {[%emt 0:03:53]} 6. Bg2 {[%emt 0:00:10]} c6 {[%emt 0:03:55]} 7. c4 {[%emt 0:02:42]} Bg7 {[%emt 0:01:09][%cal Oe6e5]} 8. Nc3 {[%emt 0:01:06]} h6 {[%emt 0:06:35]} 9. O-O {[%emt 0:02:27][%cal Oe2e4]} O-O {[%emt 0:00:09]} 10. Rd1 {[%emt 0:07:44]} d5 {[%emt 0:13:54]} 11. Ne5 {[%emt 0:06:19]} Kh7 {[%emt 0:00:16]} 12. Qc2 {[%emt 0:01:54] White is much more active. The black rooks are passive.} Nbd7 {[%emt 0:01:53]} 13. f4 {[%emt 0:04:13]} Ne8 {[%emt 0:19:26]} 14. b3 {[%emt 0:08:48]} Ndf6 {[%emt 0:00:03]} 15. Ba3 {[%emt 0:03:12]} Nd6 {[%emt 0:00:03]} 16. Bxd6 {[%emt 0:00:40]} Qxd6 {[%emt 0:00:03]} 17. c5 {[%emt 0:00:10]} Qc7 {[%emt 0:04:08]} 18. b4 {[%emt 0:00:08] Weighted Error Value: White=0.11 (very precise) /Black=0.13 (very precise) .  Inaccurate:     	White=4     	Black=3      OK:         	White=6     	Black=5} 1/2-1/2